bitfinex-derivatives/quotes_BTCF0:USTF0_20251216
["timestamp","ask_amount","ask_price","bid_price","bid_amount"]
[1765915194837,4.747e-05,87645.0,87644.0,0.16336812]
[1765915196733,4.747e-05,87645.0,87644.0,0.16236812]
[1765915197037,4.747e-05,87645.0,87644.0,0.1521923]
[1765915197342,0.14444957,87645.0,87644.0,0.1521923]
[1765915197739,0.14444957,87645.0,87644.0,0.14078]
[1765915198136,0.17155511,87645.0,87644.0,0.14078]
[1765915198337,0.17155511,87645.0,87644.0,0.13978]
[1765915198541,0.14444957,87645.0,87644.0,0.1501923]
[1765915198733,0.14444957,87645.0,87644.0,0.13878]
[1765915198934,0.14444957,87645.0,87622.0,0.49958]
[1765915198935,0.03928,87635.0,87622.0,0.49958]
[1765915199146,0.144405,87623.0,87622.0,0.49958]
[1765915199347,0.14445247,87623.0,87622.0,0.49958]
[1765915200346,0.1444055,87619.0,87610.0,0.03948]
[1765915200850,0.1444066,87611.0,87610.0,0.17826]
[1765915201052,0.13299,87605.0,87604.0,0.49958]
[1765915201247,0.13299,87605.0,87604.0,0.03462189]
[1765915201447,0.0336973,87606.0,87601.0,0.07931683]
[1765915201448,0.13299,87602.0,87601.0,0.07931683]
[1765915201636,4.747e-05,87602.0,87601.0,0.14999683]
[1765915202151,0.13303747,87602.0,87601.0,0.13878]
[1765915202348,4.747e-05,87602.0,87601.0,0.13878]
[1765915202554,4.747e-05,87602.0,87601.0,0.15006343]
[1765915202750,4.747e-05,87602.0,87601.0,0.13878]
[1765915202955,0.13303747,87602.0,87601.0,0.13878]
[1765915203554,0.13403747,87602.0,87601.0,0.13878]
[1765915203759,0.00104747,87602.0,87601.0,0.13878]
[1765915204054,0.00104747,87602.0,87601.0,0.13704]
[1765915204354,0.13637747,87602.0,87601.0,0.13704]
[1765915206154,4.747e-05,87602.0,87601.0,0.13704]
[1765915206355,0.07201747,87602.0,87601.0,0.13704]
[1765915206756,0.00104747,87602.0,87601.0,0.13704]
[1765915207158,4.747e-05,87602.0,87601.0,0.13804]
[1765915207560,1.23e-06,87610.0,87609.0,0.1484568]
[1765915207868,0.13633,87632.0,87631.0,0.1484539]
[1765915208050,0.16349819,87632.0,87631.0,0.1484539]
[1765915208252,0.13633,87632.0,87631.0,0.1484539]
[1765915208662,0.3608,87638.0,87630.0,0.03923]
[1765915208663,0.49713,87638.0,87637.0,0.1484532]
[1765915208861,0.5242954,87638.0,87637.0,0.1484532]
[1765915209450,0.5242954,87638.0,87637.0,0.0829632]
[1765915209654,0.5242954,87638.0,87637.0,0.1484532]
[1765915209851,0.43177,87638.0,87637.0,0.1484532]
[1765915210055,0.01158323,87646.0,87645.0,0.1484521]
[1765915210056,0.13650123,87646.0,87645.0,0.1484521]
[1765915210256,0.16366206,87646.0,87645.0,0.1484521]
[1765915210658,0.16366206,87646.0,87645.0,0.13704]
[1765915211462,0.13650123,87646.0,87645.0,0.13704]
[1765915211758,0.13750123,87646.0,87645.0,0.13704]
[1765915211959,0.13850123,87646.0,87645.0,0.13704]
[1765915212961,0.13750123,87646.0,87645.0,0.13704]
[1765915213270,0.13850123,87646.0,87645.0,0.13704]
[1765915213765,0.00117123,87646.0,87645.0,0.13704]
[1765915213959,0.00217123,87646.0,87645.0,0.13704]
[1765915215166,0.00117123,87646.0,87645.0,0.13804]
[1765915215566,0.3608,87661.0,87657.0,0.1484506]
[1765915215962,0.15634603,87667.0,87657.0,0.1484506]
[1765915215963,0.3722095,87666.0,87657.0,0.1484506]
[1765915216263,0.13861161,87658.0,87657.0,0.1484506]
[1765915216971,0.07325161,87658.0,87657.0,0.1484506]
[1765915217266,0.00328161,87658.0,87657.0,0.1484506]
[1765915217867,0.00228161,87658.0,87657.0,0.1484506]
[1765915218266,0.13861161,87658.0,87657.0,0.13704]
[1765915218466,0.1477413,87651.0,87650.0,0.13704]
[1765915219571,0.1477413,87651.0,87650.0,0.07155]
[1765915219776,0.13633,87650.0,87649.0,0.00017112]
[1765915220075,0.13633,87650.0,87649.0,0.13721112]
[1765915220965,0.13733,87650.0,87649.0,0.13721112]
[1765915221160,0.13833,87650.0,87649.0,0.13721112]
[1765915224276,0.13633,87650.0,87649.0,0.13721112]
[1765915224480,0.13833,87650.0,87649.0,0.13721112]
[1765915225878,0.13733,87650.0,87649.0,0.13721112]
[1765915226061,0.13833,87650.0,87649.0,0.13721112]
[1765915226671,0.13733,87650.0,87649.0,0.13721112]
[1765915226879,0.13833,87650.0,87649.0,0.13721112]
[1765915227467,0.13733,87650.0,87649.0,0.13721112]
[1765915227671,0.13833,87650.0,87649.0,0.00017112]
[1765915227876,0.13733,87650.0,87649.0,0.00017112]
[1765915228077,0.13833,87650.0,87649.0,0.00017112]
[1765915228482,0.13833,87650.0,87649.0,0.13721112]
[1765915229280,0.13833,87650.0,87649.0,0.00017112]
[1765915229874,0.13633,87650.0,87649.0,0.00017112]
[1765915230080,0.13833,87650.0,87649.0,0.13721112]
[1765915230767,0.13933,87650.0,87649.0,0.13721112]
[1765915231081,0.13833,87650.0,87649.0,0.13721112]
[1765915231281,0.13933,87650.0,87649.0,0.13721112]
[1765915231483,0.13933,87650.0,87649.0,0.00017112]
[1765915232183,0.13733,87650.0,87649.0,0.00017112]
[1765915232384,0.16547273,87650.0,87649.0,0.00017112]
[1765915232875,0.16547273,87650.0,87633.0,0.39033]
[1765915232876,0.1477432,87637.0,87636.0,0.1484533]
[1765915233985,0.1487432,87637.0,87636.0,0.1484533]
[1765915234174,0.1487432,87637.0,87636.0,0.13704]
[1765915234582,0.1487432,87637.0,87636.0,0.1484533]
[1765915235470,0.1497432,87637.0,87636.0,0.1484533]
[1765915237587,0.17697048,87637.0,87636.0,0.1484533]
[1765915238586,0.17597048,87637.0,87636.0,0.1883433]
[1765915238886,0.17697048,87637.0,87636.0,0.1883433]
[1765915239081,0.1487432,87637.0,87636.0,0.1883433]
[1765915239287,0.1497432,87637.0,87636.0,0.1484533]
[1765915239586,0.17721918,87637.0,87636.0,0.1484533]
[1765915239884,0.17721918,87637.0,87636.0,0.13704]
[1765915240082,0.53801918,87637.0,87636.0,0.13704]
[1765915240276,0.53701918,87637.0,87636.0,0.13704]
[1765915241881,0.53801918,87637.0,87636.0,0.13704]
[1765915243291,0.53701918,87637.0,87636.0,0.13704]
[1765915243492,0.53801918,87637.0,87636.0,0.13704]
[1765915245192,0.52660598,87637.0,87636.0,0.13704]
[1765915245489,0.52660598,87637.0,87636.0,0.17693]
[1765915245490,0.002,87637.0,87636.0,0.17693]
[1765915245690,0.36097112,87645.0,87644.0,0.1372]
[1765915245994,0.00017112,87645.0,87644.0,0.1486123]
[1765915248391,0.00117112,87645.0,87644.0,0.1486123]
[1765915252995,0.00017112,87645.0,87644.0,0.1486123]
[1765915253199,0.14267112,87645.0,87644.0,0.1506123]
[1765915253595,0.07129112,87645.0,87644.0,0.1506123]
[1765915253892,0.00228161,87658.0,87657.0,0.1486106]
[1765915254089,0.00228161,87658.0,87657.0,0.5094106]
[1765915255181,0.00328161,87658.0,87657.0,0.5094106]
[1765915255693,0.00228161,87658.0,87657.0,0.5094106]
[1765915255892,0.00228161,87658.0,87657.0,0.5114106]
[1765915256297,0.00228161,87658.0,87657.0,0.5104106]
[1765915256696,0.00228161,87658.0,87657.0,0.5124106]
[1765915257092,0.14478161,87658.0,87657.0,0.5124106]
[1765915257394,0.14478161,87658.0,87657.0,0.1516106]
[1765915257805,0.15619201,87658.0,87657.0,0.002]
[1765915258003,0.15619201,87658.0,87657.0,0.003]
[1765915258301,0.18364763,87658.0,87657.0,0.002]
[1765915258499,0.18364763,87658.0,87657.0,0.001]
[1765915258895,0.1425,87650.0,87649.0,0.13737112]
[1765915259196,0.1425,87650.0,87649.0,0.14878272]
[1765915259402,0.07112,87650.0,87649.0,0.50958272]
[1765915259604,0.07112,87657.0,87656.0,0.1486107]
[1765915259785,0.09857382,87657.0,87656.0,0.1486107]
[1765915259989,0.00428161,87658.0,87657.0,0.1372]
[1765915260194,0.0317353,87658.0,87657.0,0.1372]
[1765915260397,0.0317353,87658.0,87657.0,0.498]
[1765915260589,0.00328161,87658.0,87657.0,0.498]
[1765915260786,0.00428161,87658.0,87657.0,0.498]
[1765915261293,0.00228161,87658.0,87657.0,0.499]
[1765915262499,0.00228161,87658.0,87657.0,0.5]
[1765915262901,0.00017112,87666.0,87665.0,0.1486095]
[1765915263908,0.00017112,87666.0,87657.0,0.001]
[1765915264097,0.1457304,87658.0,87657.0,0.001]
[1765915264301,0.17317363,87658.0,87657.0,0.001]
[1765915264709,0.1457315,87650.0,87649.0,0.13694112]
[1765915266502,0.1467315,87650.0,87649.0,0.13694112]
[1765915266899,0.1477315,87650.0,87649.0,0.07065112]
[1765915268103,0.1467315,87650.0,87649.0,0.13694112]
[1765915268303,0.1477315,87650.0,87649.0,0.13694112]
[1765915268815,0.1467315,87650.0,87649.0,0.13694112]
[1765915269109,0.1477315,87650.0,87649.0,0.13694112]
[1765915270405,0.17431483,87650.0,87649.0,0.13694112]
[1765915270609,0.17531483,87650.0,87649.0,0.13694112]
[1765915271504,0.17431483,87650.0,87649.0,0.13694112]
[1765915274003,0.02758333,87650.0,87649.0,0.14835272]
[1765915274300,0.3608,87659.0,87658.0,0.1481804]
[1765915274504,0.38841015,87659.0,87658.0,0.1481804]
[1765915275802,0.38841015,87659.0,87658.0,0.1491804]
[1765915276498,0.02761015,87659.0,87658.0,0.1501804]
[1765915277505,0.02761015,87659.0,87658.0,0.1491804]
[1765915277710,0.02761015,87659.0,87658.0,0.1501804]
[1765915278116,0.02761015,87659.0,87658.0,0.1491804]
[1765915278416,0.13449112,87666.0,87665.0,0.1481795]
[1765915278714,0.16210431,87666.0,87665.0,0.1481795]
[1765915284611,0.00017112,87666.0,87665.0,0.15950373]
[1765915285411,0.00017112,87666.0,87665.0,0.52030373]
[1765915285811,0.49512,87684.0,87683.0,0.1481772]
[1765915286013,0.38839289,87684.0,87683.0,0.1481772]
[1765915286313,0.02759289,87684.0,87683.0,0.1481772]
[1765915286514,0.16191289,87684.0,87683.0,0.1481772]
[1765915287421,0.13432,87684.0,87683.0,0.1481772]
[1765915288515,0.13432,87684.0,87683.0,0.1491772]
[1765915289114,0.13432,87688.0,87687.0,0.1481767]
[1765915290016,0.00017112,87692.0,87691.0,0.13677]
[1765915291709,0.00017112,87692.0,87691.0,0.13777]
[1765915292512,0.00017112,87692.0,87691.0,0.13977]
[1765915292913,0.00017112,87692.0,87691.0,0.13777]
[1765915293115,0.00017112,87692.0,87691.0,0.13877]
[1765915293422,0.00017112,87692.0,87691.0,0.13977]
[1765915294128,0.00017112,87692.0,87691.0,0.13877]
[1765915294322,0.13432112,87692.0,87691.0,0.13877]
[1765915295116,0.13432112,87692.0,87691.0,0.13977]
[1765915295826,0.13432112,87692.0,87691.0,0.13777]
[1765915297627,0.13432112,87692.0,87691.0,0.13677]
[1765915298619,0.00017112,87692.0,87691.0,0.13677]
[1765915299022,0.00017112,87692.0,87690.0,0.0114063]
[1765915299023,0.00228057,87698.0,87697.0,0.1446754]
[1765915299229,0.00228057,87698.0,87697.0,0.5054754]
[1765915300019,0.13875057,87698.0,87697.0,0.49407]
[1765915300223,0.00017112,87706.0,87705.0,0.1446743]
[1765915300423,0.13664112,87706.0,87705.0,0.13327]
[1765915300729,0.1478751,87699.0,87698.0,0.13327]
[1765915300921,0.13647,87698.0,87697.0,0.00217112]
[1765915301425,0.1637278,87698.0,87697.0,0.00217112]
[1765915301929,0.1637278,87698.0,87697.0,0.00117112]
[1765915302331,0.1657278,87698.0,87697.0,0.00017112]
[1765915303931,0.1687278,87698.0,87697.0,0.00117112]
[1765915304718,0.1657278,87698.0,87697.0,0.06390112]
[1765915304920,0.1677278,87698.0,87697.0,0.06390112]
[1765915305632,0.1677278,87698.0,87697.0,0.13344112]
[1765915306030,0.1657278,87698.0,87697.0,0.06390112]
[1765915306249,0.1677278,87698.0,87697.0,0.00017112]
[1765915307229,0.8816078,87698.0,87697.0,0.00017112]
[1765915308125,0.1677278,87698.0,87697.0,0.13344112]
[1765915308326,0.8815678,87698.0,87697.0,0.13344112]
[1765915308520,0.8815678,87698.0,87697.0,0.00017112]
[1765915310237,0.0114075,87681.0,87680.0,0.0114071]
[1765915310436,0.13647,87681.0,87680.0,0.1446771]
[1765915310937,0.067,87681.0,87680.0,0.1446771]
[1765915311133,0.3608,87687.0,87686.0,0.13327]
[1765915311346,0.13847,87698.0,87697.0,0.1446754]
[1765915311538,0.58392039,87698.0,87697.0,0.1446754]
[1765915311836,0.58192039,87698.0,87697.0,0.1446754]
[1765915312933,0.58392039,87698.0,87697.0,0.1446754]
[1765915313333,0.13647,87691.0,87690.0,0.13327]
[1765915313635,0.16380039,87691.0,87690.0,0.1446763]
[1765915314029,0.16380039,87691.0,87690.0,0.13327]
[1765915314332,0.13647,87688.0,87687.0,0.0751366]
[1765915314635,0.13647,87685.0,87684.0,0.075137]
[1765915314837,0.16380039,87685.0,87684.0,0.075137]
[1765915315136,0.16380039,87685.0,87684.0,0.144677]
[1765915315736,0.16480039,87685.0,87684.0,0.144677]
[1765915315932,0.09533039,87685.0,87684.0,0.144677]
[1765915316238,0.02833039,87685.0,87684.0,0.144677]
[1765915316438,0.09533039,87685.0,87684.0,0.144677]
[1765915317233,0.001,87685.0,87684.0,0.144677]
[1765915317436,0.78088,87692.0,87691.0,0.1446761]
[1765915317739,0.87773073,87692.0,87691.0,0.1446761]
[1765915319041,0.13647,87688.0,87687.0,0.1446765]
[1765915319336,0.1478769,87685.0,87684.0,0.0751369]
[1765915319537,0.1478772,87683.0,87682.0,0.0751373]
[1765915319731,0.17525793,87683.0,87682.0,0.13327]
[1765915320144,0.17525793,87683.0,87682.0,0.06373]
[1765915320434,0.17525793,87683.0,87682.0,0.13327]
[1765915320738,0.13647,87679.0,87678.0,0.00017112]
[1765915320930,0.52465073,87679.0,87678.0,0.00017112]
[1765915321327,0.52465073,87679.0,87678.0,0.13344112]
[1765915321526,1.08589073,87679.0,87678.0,0.13344112]
[1765915321727,0.87785073,87679.0,87678.0,0.13344112]
[1765915322041,0.87985073,87679.0,87678.0,0.13344112]
[1765915322835,0.88085073,87679.0,87678.0,0.06390112]
[1765915323037,1.24165073,87679.0,87678.0,0.00017112]
[1765915323538,1.23965073,87679.0,87678.0,0.00017112]
[1765915324138,1.24065073,87679.0,87678.0,0.00017112]
[1765915324941,1.24065073,87679.0,87678.0,0.06440112]
[1765915325146,1.23965073,87679.0,87678.0,0.00017112]
[1765915325446,1.24065073,87679.0,87678.0,0.00017112]
[1765915325636,1.23965073,87679.0,87678.0,0.00017112]
[1765915325837,1.24165073,87679.0,87678.0,0.00017112]
[1765915326046,0.52765073,87679.0,87678.0,0.13446112]
[1765915326246,1.24161073,87679.0,87678.0,0.13446112]
[1765915326444,1.23961073,87679.0,87678.0,0.13446112]
[1765915326837,1.24061073,87679.0,87678.0,0.13446112]
[1765915327237,1.23961073,87679.0,87678.0,0.00017112]
[1765915327436,1.24061073,87679.0,87678.0,0.00017112]
[1765915328039,1.24061073,87679.0,87678.0,0.06440112]
[1765915328239,1.24061073,87679.0,87678.0,0.13446112]
[1765915329339,1.24061073,87679.0,87678.0,0.00017112]
[1765915330142,1.24057073,87679.0,87678.0,0.00017112]
[1765915330449,1.23957073,87679.0,87678.0,0.13446112]
[1765915330642,0.45618073,87679.0,87678.0,0.13446112]
[1765915330836,0.39018073,87679.0,87678.0,0.13446112]
[1765915331239,0.38918073,87679.0,87678.0,0.13446112]
[1765915331447,0.3628,87679.0,87678.0,0.13446112]
[1765915331941,0.3618,87679.0,87678.0,0.13446112]
[1765915332140,0.3628,87679.0,87678.0,0.13446112]
[1765915332939,0.49412,87679.0,87678.0,0.13546112]
[1765915333254,0.5045277,87679.0,87678.0,0.13546112]
[1765915333854,0.5045277,87679.0,87678.0,0.13646112]
[1765915334254,0.5045277,87679.0,87678.0,0.13546112]
[1765915334952,0.13232,87679.0,87678.0,0.13546112]
[1765915335255,0.14389782,87687.0,87686.0,0.13429]
[1765915335456,0.78305465,87687.0,87686.0,0.13429]
[1765915335852,0.78305465,87687.0,87678.0,0.00017112]
[1765915335853,0.1437277,87679.0,87678.0,0.13446112]
[1765915336069,0.1437277,87679.0,87678.0,0.00017112]
[1765915336258,0.1437277,87679.0,87678.0,0.13446112]
[1765915337055,0.1447277,87679.0,87678.0,0.13446112]
[1765915338154,0.1447277,87679.0,87678.0,0.14586892]
[1765915338963,0.0134077,87679.0,87678.0,0.14586892]
[1765915339758,0.1457277,87679.0,87678.0,0.14586892]
[1765915340161,0.1447277,87679.0,87678.0,0.14586892]
[1765915341260,0.1447277,87679.0,87678.0,0.13732649]
[1765915341561,0.001,87679.0,87678.0,0.13732649]
[1765915341954,0.06868112,87687.0,87686.0,0.1456968]
[1765915342160,0.13249112,87687.0,87686.0,0.1456968]
[1765915343260,0.00017112,87687.0,87686.0,0.1456968]
[1765915343767,0.00117112,87687.0,87686.0,0.1456968]
[1765915345561,0.00017112,87687.0,87686.0,0.1456968]
[1765915346261,0.00017112,87687.0,87686.0,0.1466968]
[1765915346461,0.00017112,87687.0,87686.0,0.1476968]
[1765915347357,0.00017112,87687.0,87686.0,0.5084968]
[1765915347758,0.06868112,87687.0,87686.0,0.5084968]
[1765915348159,0.13249112,87687.0,87686.0,0.5084968]
[1765915349265,0.13249112,87687.0,87686.0,0.5074968]
[1765915350265,0.13349112,87687.0,87686.0,0.5064968]
[1765915351760,0.13249112,87687.0,87686.0,0.5064968]
[1765915353369,0.13349112,87687.0,87686.0,0.5064968]
[1765915353555,0.1437277,87679.0,87678.0,0.13446112]
[1765915353868,0.1437277,87679.0,87678.0,0.00017112]
[1765915355571,0.1437277,87679.0,87678.0,0.00217112]
[1765915356275,0.53264963,87679.0,87678.0,0.00117112]
[1765915356475,0.53464963,87679.0,87678.0,0.00117112]
[1765915356672,0.53464963,87679.0,87668.0,0.3608]
[1765915356673,0.13566,87669.0,87668.0,0.3608]
[1765915356980,0.1470703,87659.0,87658.0,0.00228161]
[1765915357167,0.1470703,87659.0,87647.0,9.393e-05]
[1765915357168,0.1805817,87648.0,87647.0,9.393e-05]
[1765915358791,0.1815817,87648.0,87647.0,9.393e-05]
[1765915358970,0.1825817,87648.0,87647.0,9.393e-05]
[1765915361078,0.13766,87648.0,87647.0,0.13156393]
[1765915361582,0.13566,87648.0,87647.0,0.13156393]
[1765915361883,0.13766,87648.0,87647.0,0.13156393]
[1765915362285,0.13666,87648.0,87647.0,0.13156393]
[1765915362981,0.13666,87648.0,87647.0,0.17035393]
[1765915363180,0.001,87648.0,87647.0,0.17035393]
[1765915364070,0.13566,87648.0,87647.0,0.17035393]
[1765915364270,0.13666,87648.0,87647.0,0.13156393]
[1765915364471,0.13666,87648.0,87647.0,0.06574393]
[1765915365182,0.13666,87648.0,87647.0,0.13156393]
[1765915365683,0.13566,87648.0,87647.0,0.17035393]
[1765915365983,0.13566,87648.0,87647.0,0.17135393]
[1765915366483,0.13566,87648.0,87647.0,0.13256393]
[1765915368283,0.13566,87648.0,87647.0,0.17135393]
[1765915370388,0.13566,87648.0,87647.0,0.17035393]
[1765915371181,0.00017112,87656.0,87647.0,0.17035393]
[1765915371182,0.13583112,87656.0,87655.0,0.1428808]
[1765915371387,0.13583112,87656.0,87655.0,0.13147]
[1765915372285,0.13583112,87656.0,87655.0,0.06565]
[1765915372677,0.13683112,87656.0,87655.0,0.06565]
[1765915372880,0.1470713,87651.0,87650.0,0.5036815]
[1765915373080,0.13566,87651.0,87650.0,0.5036815]
[1765915373984,0.13566,87651.0,87650.0,0.06565]
[1765915374193,0.1470717,87648.0,87647.0,9.393e-05]
[1765915374684,0.1470717,87648.0,87647.0,0.06574393]
[1765915374887,0.1470717,87648.0,87647.0,0.13156393]
[1765915375086,0.1470717,87648.0,87647.0,9.393e-05]
[1765915375388,0.1480717,87648.0,87647.0,9.393e-05]
[1765915376487,0.1490717,87648.0,87647.0,0.13156393]
[1765915377088,0.1480717,87648.0,87647.0,0.13156393]
[1765915377289,0.13766,87648.0,87647.0,0.13156393]
[1765915377692,0.13666,87648.0,87647.0,0.13156393]
[1765915378187,0.13766,87648.0,87647.0,0.13156393]
[1765915378383,0.13666,87648.0,87647.0,0.13156393]
[1765915379482,0.13566,87648.0,87647.0,9.393e-05]
[1765915379787,0.13566,87648.0,87647.0,0.00109393]
[1765915380191,0.13566,87648.0,87647.0,0.13256393]
[1765915380387,0.13566,87648.0,87647.0,0.13156393]
[1765915380584,0.13666,87648.0,87647.0,0.13156393]
[1765915380994,0.13566,87648.0,87647.0,0.13156393]
[1765915381189,0.13766,87648.0,87647.0,0.13156393]
[1765915381583,0.13666,87648.0,87647.0,0.13156393]
[1765915381882,0.002,87648.0,87647.0,0.17035393]
[1765915382089,0.13766,87648.0,87647.0,0.17035393]
[1765915383087,0.001,87648.0,87647.0,0.17035393]
[1765915383392,0.13566,87648.0,87647.0,0.17135393]
[1765915384086,0.13566,87648.0,87647.0,0.17035393]
[1765915384286,0.13566,87648.0,87647.0,0.17135393]
[1765915385192,0.16262808,87648.0,87647.0,0.17135393]
[1765915385494,0.00017112,87656.0,87655.0,0.1487208]
[1765915385789,0.13333,87651.0,87650.0,0.5095215]
[1765915386198,0.16033097,87651.0,87650.0,0.5095215]
[1765915387489,0.16033097,87651.0,87650.0,0.1487215]
[1765915387792,0.13333,87648.0,87647.0,9.393e-05]
[1765915387996,0.19824097,87648.0,87647.0,9.393e-05]
[1765915388395,0.16033097,87648.0,87647.0,0.13740393]
[1765915388892,0.02700097,87648.0,87647.0,0.13740393]
[1765915389194,0.13333,87655.0,87654.0,0.148721]
[1765915389401,0.02711019,87655.0,87654.0,0.148721]
[1765915389788,0.16044019,87655.0,87654.0,0.148721]
[1765915390889,0.1826517,87648.0,87647.0,0.00109393]
[1765915391184,0.1826517,87648.0,87647.0,0.13840393]
[1765915391185,0.17185189,87648.0,87647.0,0.13840393]
[1765915391592,0.20976189,87648.0,87647.0,0.13840393]
[1765915391790,0.20976189,87648.0,87647.0,0.13740393]
[1765915392495,0.19835019,87648.0,87647.0,0.13740393]
[1765915392697,0.19935019,87648.0,87647.0,0.13740393]
[1765915393199,0.09495019,87648.0,87647.0,0.13740393]
[1765915393401,0.02811019,87648.0,87647.0,0.13740393]
[1765915393702,0.001,87648.0,87647.0,0.13740393]
[1765915394200,0.00017112,87656.0,87655.0,0.1487208]
[1765915394493,0.03791,87680.0,87672.0,0.1904786]
[1765915394494,0.42764,87673.0,87672.0,0.1904786]
[1765915394701,0.38789665,87673.0,87672.0,0.1904786]
[1765915394890,0.02709665,87673.0,87672.0,0.5512786]
[1765915395200,0.28965779,87682.0,87681.0,0.13731]
[1765915395390,0.02706739,87682.0,87681.0,0.13731]
[1765915395900,0.16039739,87682.0,87681.0,0.49811]
[1765915396098,0.13350112,87690.0,87689.0,0.13731]
[1765915396305,0.16054024,87690.0,87689.0,0.13731]
[1765915396893,0.13333,87686.0,87685.0,0.1487168]
[1765915397306,0.06684,87682.0,87681.0,0.06901]
[1765915397495,0.13333,87682.0,87681.0,0.001]
[1765915397690,0.16035481,87682.0,87681.0,0.001]
[1765915398097,0.13333,87674.0,87673.0,0.00017112]
[1765915398600,0.17175872,87674.0,87673.0,0.00017112]
[1765915399000,0.53255872,87674.0,87673.0,0.00017112]
[1765915399198,0.13333,87662.0,87661.0,0.49811]
[1765915399391,0.13333,87669.0,87668.0,0.0693]
[1765915399700,0.144739,87669.0,87668.0,0.06801]
[1765915399901,0.144739,87669.0,87668.0,0.13731]
[1765915400297,0.13333,87661.0,87660.0,0.00017112]
[1765915400500,0.16035288,87661.0,87660.0,0.00017112]
[1765915400797,0.52115288,87661.0,87660.0,0.00017112]
[1765915401000,0.52115288,87661.0,87650.0,0.0114114]
[1765915401204,0.13333,87651.0,87650.0,0.0794214]
[1765915401399,0.13333,87648.0,87647.0,9.393e-05]
[1765915401799,0.13333,87648.0,87647.0,0.13740393]
[1765915402892,0.13533,87648.0,87647.0,0.13740393]
[1765915403395,0.13433,87648.0,87647.0,0.13740393]
[1765915404204,0.13333,87648.0,87647.0,0.13740393]
[1765915405407,0.1447417,87648.0,87647.0,0.13840393]
[1765915405610,0.1447417,87648.0,87647.0,0.00109393]
[1765915406601,0.5055417,87648.0,87647.0,0.00109393]
[1765915406998,0.53257033,87648.0,87647.0,0.00109393]
[1765915407200,0.53357033,87648.0,87647.0,9.393e-05]
[1765915407899,0.53257033,87648.0,87647.0,9.393e-05]
[1765915408101,0.53457033,87648.0,87647.0,9.393e-05]
[1765915408299,0.53657033,87648.0,87647.0,9.393e-05]
[1765915408692,0.53457033,87648.0,87647.0,9.393e-05]
[1765915409899,0.53357033,87648.0,87647.0,9.393e-05]
[1765915410100,0.5085417,87648.0,87647.0,9.393e-05]
[1765915410506,0.1477417,87648.0,87647.0,9.393e-05]
[1765915410703,0.003,87648.0,87647.0,0.13740393]
[1765915410898,0.00017112,87656.0,87655.0,0.1487208]
[1765915411103,0.00017112,87656.0,87655.0,0.5095208]
[1765915413007,0.00017112,87656.0,87655.0,0.5115208]
[1765915413412,0.16052196,87656.0,87655.0,0.004]
[1765915414004,0.16052196,87656.0,87655.0,0.002]
[1765915414211,0.16052196,87656.0,87655.0,0.005]
[1765915414413,0.16052196,87656.0,87655.0,0.003]
[1765915414614,0.16052196,87656.0,87655.0,0.005]
[1765915414811,0.16052196,87656.0,87655.0,0.002]
[1765915415011,0.16052196,87656.0,87647.0,0.01150573]
[1765915415012,0.13316,87648.0,87647.0,0.01150573]
[1765915415204,0.1445717,87648.0,87647.0,9.393e-05]
[1765915415607,0.13316,87648.0,87647.0,9.393e-05]
[1765915416812,0.13316,87648.0,87647.0,0.06936393]
[1765915417410,0.13416,87648.0,87647.0,0.06936393]
[1765915418011,0.13316,87648.0,87647.0,0.06936393]
[1765915418212,0.13316,87648.0,87647.0,0.07036393]
[1765915419305,0.13316,87648.0,87647.0,0.00109393]
[1765915419505,0.13316,87648.0,87647.0,9.393e-05]
[1765915420518,0.13416,87648.0,87647.0,9.393e-05]
[1765915421412,0.13516,87648.0,87647.0,9.393e-05]
[1765915421712,0.13516,87648.0,87647.0,0.06936393]
[1765915421912,0.13416,87648.0,87647.0,0.06936393]
[1765915423620,0.13316,87648.0,87647.0,0.06936393]
[1765915424317,0.13416,87648.0,87647.0,0.06936393]
[1765915424716,0.13316,87648.0,87647.0,0.06936393]
[1765915425117,0.13316,87648.0,87647.0,9.393e-05]
[1765915425812,0.15996574,87648.0,87647.0,9.393e-05]
[1765915426117,0.1445433,87636.0,87635.0,0.3608]
[1765915426416,0.1445433,87636.0,87635.0,0.49971]
[1765915426807,0.06681,87636.0,87635.0,0.49971]
[1765915427014,0.133215,87636.0,87635.0,0.49971]
[1765915428220,0.133215,87636.0,87635.0,0.50071]
[1765915428921,0.133215,87636.0,87635.0,0.50171]
[1765915430019,0.066895,87636.0,87635.0,0.50171]
[1765915430218,0.133215,87636.0,87635.0,0.50171]
[1765915431124,0.133215,87636.0,87635.0,0.3628]
[1765915431722,0.144545,87623.0,87622.0,0.3608]
[1765915431915,0.1831855,87619.0,87618.0,0.00228265]
[1765915432223,0.1831855,87619.0,87604.0,0.01144739]
[1765915432224,0.13313,87608.0,87607.0,0.011417]
[1765915432408,0.14463479,87608.0,87607.0,0.150327]
[1765915432816,0.13321789,87608.0,87607.0,0.150327]
[1765915435931,0.06789789,87608.0,87607.0,0.150327]
[1765915436739,0.13321789,87608.0,87607.0,0.150327]
[1765915438238,0.13321789,87608.0,87607.0,0.151327]
[1765915438737,0.06689789,87608.0,87607.0,0.151327]
[1765915438928,0.06689789,87608.0,87607.0,0.150327]
[1765915439525,8.789e-05,87608.0,87607.0,0.150327]
[1765915439940,0.06689789,87608.0,87607.0,0.151327]
[1765915440935,0.13321789,87608.0,87607.0,0.152327]
[1765915441436,0.13321789,87608.0,87607.0,0.151327]
[1765915441636,0.13321789,87608.0,87607.0,0.152327]
[1765915442139,0.13321789,87608.0,87607.0,0.151327]
[1765915442339,0.13321789,87608.0,87607.0,0.152327]
[1765915443034,0.06689789,87608.0,87607.0,0.152327]
[1765915443441,8.789e-05,87608.0,87607.0,0.152327]
[1765915443938,0.06689789,87608.0,87607.0,0.152327]
[1765915444143,8.789e-05,87608.0,87607.0,0.152327]
[1765915445033,0.13406789,87608.0,87607.0,0.152327]
[1765915445630,8.789e-05,87608.0,87607.0,0.152327]
[1765915446144,0.1453947,87626.0,87625.0,0.1504647]
[1765915446442,0.17219585,87626.0,87625.0,0.1504647]
[1765915447643,0.17519585,87626.0,87625.0,0.1504647]
[1765915448028,0.16378115,87626.0,87625.0,0.1504647]
[1765915448640,0.16278115,87626.0,87625.0,0.1504647]
[1765915449446,0.16178115,87626.0,87625.0,0.1504647]
[1765915450343,0.16078115,87626.0,87625.0,0.1504647]
[1765915451145,0.0114158,87620.0,87619.0,0.0114155]
[1765915451338,0.1453958,87620.0,87619.0,0.0806155]
[1765915451537,0.1453958,87620.0,87619.0,0.1504655]
[1765915452244,0.1463958,87620.0,87619.0,0.1504655]
[1765915452449,0.1463958,87620.0,87619.0,0.13905]
[1765915453233,0.17322629,87620.0,87619.0,0.13905]
[1765915453436,0.13398,87615.0,87614.0,0.49985]